[Event "Early-Titled-Tuesday-Blitz-April-23-2024"]
[Site "Chess.com"]
[Date "2024.04.23"]
[Round "6"]
[White "agustinv04"]
[Black "jinxy2009"]
[Result "1/2-1/2"]
[WhiteElo "2480"]
[BlackElo "2307"]
[TimeControl "180+1"]
[EndTime "9:09:34 PDT"]
[Termination "Game drawn by repetition"]

1. Nf3 {[%clk 0:03:00.9]} 1... Nf6 {[%clk 0:02:57.8]} 2. g3 {[%clk 0:03:01.2]}
2... g6 {[%clk 0:02:57.8]} 3. Bg2 {[%clk 0:03:01.5]} 3... Bg7 {[%clk 0:02:58.1]}
4. O-O {[%clk 0:03:01.8]} 4... O-O {[%clk 0:02:58.5]} 5. b3 {[%clk 0:02:59.3]}
5... b6 {[%clk 0:02:48.7]} 6. Bb2 {[%clk 0:02:58.9]} 6... Bb7 {[%clk 0:02:49.1]}
7. c4 {[%clk 0:02:53.1]} 7... c5 {[%clk 0:02:46.4]} 8. Nc3 {[%clk 0:02:53.3]}
8... d5 {[%clk 0:02:44.8]} 9. Nxd5 {[%clk 0:02:52.1]} 9... Nxd5 {[%clk
0:02:44.2]} 10. Bxg7 {[%clk 0:02:51.5]} 10... Kxg7 {[%clk 0:02:45.1]} 11. cxd5
{[%clk 0:02:51.6]} 11... Bxd5 {[%clk 0:02:45.8]} 12. d4 {[%clk 0:02:51.7]} 12...
Nd7 {[%clk 0:02:22]} 13. Rc1 {[%clk 0:02:46]} 13... cxd4 {[%clk 0:01:58]} 14.
Qxd4+ {[%clk 0:02:46.9]} 14... Nf6 {[%clk 0:01:58.2]} 15. Rfd1 {[%clk
0:02:37.6]} 15... Rc8 {[%clk 0:01:30.1]} 16. Rxc8 {[%clk 0:02:11]} 16... Qxc8
{[%clk 0:01:31]} 17. g4 {[%clk 0:02:05.9]} 17... Bxf3 {[%clk 0:01:11.9]} 18.
Bxf3 {[%clk 0:02:06.8]} 18... h6 {[%clk 0:01:05.3]} 19. h4 {[%clk 0:02:05.4]}
19... Kg8 {[%clk 0:00:59.4]} 20. g5 {[%clk 0:02:05.5]} 20... hxg5 {[%clk
0:00:57.6]} 21. hxg5 {[%clk 0:02:05.4]} 21... Nh7 {[%clk 0:00:57.8]} 22. Qe5
{[%clk 0:02:04.9]} 22... Qf5 {[%clk 0:00:56.5]} 23. Qxf5 {[%clk 0:02:03.9]}
23... gxf5 {[%clk 0:00:57.4]} 24. Rd7 {[%clk 0:01:47.9]} 24... Nxg5 {[%clk
0:00:55.6]} 25. Rxe7 {[%clk 0:01:36]} 25... Nxf3+ {[%clk 0:00:55]} 26. exf3
{[%clk 0:01:36.6]} 26... Rc8 {[%clk 0:00:55.1]} 27. Rxa7 {[%clk 0:01:36.2]}
27... Rc2 {[%clk 0:00:52]} 28. Kg2 {[%clk 0:01:34.1]} 28... Kg7 {[%clk
0:00:52.1]} 29. f4 {[%clk 0:01:32.1]} 29... Rb2 {[%clk 0:00:46.9]} 30. Ra6
{[%clk 0:01:31.8]} 30... f6 {[%clk 0:00:40.5]} 31. Ra7+ {[%clk 0:01:25]} 31...
Kg6 {[%clk 0:00:40.6]} 32. Kg3 {[%clk 0:01:24.4]} 32... Rc2 {[%clk 0:00:38.7]}
33. Rb7 {[%clk 0:01:23.1]} 33... Rxa2 {[%clk 0:00:38]} 34. Rxb6 {[%clk
0:01:23.3]} 34... Rb2 {[%clk 0:00:37.8]} 35. Rb7 {[%clk 0:01:22.9]} 35... Kh6
{[%clk 0:00:33.6]} 36. Kf3 {[%clk 0:01:20.4]} 36... Kg6 {[%clk 0:00:33.5]} 37.
Ke3 {[%clk 0:01:18.6]} 37... Kh6 {[%clk 0:00:22.8]} 38. b4 {[%clk 0:01:10.1]}
38... Rb3+ {[%clk 0:00:19.6]} 39. Ke2 {[%clk 0:01:10.4]} 39... Kh5 {[%clk
0:00:19.2]} 40. b5 {[%clk 0:00:56.9]} 40... Kg4 {[%clk 0:00:18.6]} 41. b6 {[%clk
0:00:57.5]} 41... Kxf4 {[%clk 0:00:19]} 42. Rb8 {[%clk 0:00:58.1]} 42... Rb2+
{[%clk 0:00:15.5]} 43. Ke1 {[%clk 0:00:56.3]} 43... Kf3 {[%clk 0:00:15.8]} 44.
b7 {[%clk 0:00:56]} 44... f4 {[%clk 0:00:16.3]} 45. Kd1 {[%clk 0:00:26.8]} 45...
Kxf2 {[%clk 0:00:14.8]} 46. Kc1 {[%clk 0:00:26.3]} 46... Rb6 {[%clk 0:00:13.8]}
47. Kc2 {[%clk 0:00:26.5]} 47... f3 {[%clk 0:00:13.5]} 48. Kd2 {[%clk
0:00:26.3]} 48... Kf1 {[%clk 0:00:12.5]} 49. Kd1 {[%clk 0:00:26]} 49... f2
{[%clk 0:00:12.4]} 50. Kd2 {[%clk 0:00:26.4]} 50... Rb5 {[%clk 0:00:08.6]} 51.
Kd1 {[%clk 0:00:26.1]} 51... Rd5+ {[%clk 0:00:03.3]} 52. Kc2 {[%clk 0:00:25.6]}
52... Rb5 {[%clk 0:00:02.5]} 53. Kd2 {[%clk 0:00:25.6]} 53... Rb6 {[%clk
0:00:02.9]} 54. Kd1 {[%clk 0:00:21.3]} 54... Rb5 {[%clk 0:00:02.8]} 55. Kc2
{[%clk 0:00:20.7]} 55... Rb6 {[%clk 0:00:02.7]} 56. Kd2 {[%clk 0:00:20.7]} 56...
Rb2+ {[%clk 0:00:02.7]} 57. Ke3 {[%clk 0:00:19.2]} 57... Rb5 {[%clk 0:00:03.6]}
58. Kf3 {[%clk 0:00:18.6]} 58... Rb3+ {[%clk 0:00:03.7]} 59. Kf4 {[%clk
0:00:19]} 59... Rb4+ {[%clk 0:00:03.5]} 60. Kf5 {[%clk 0:00:19.5]} 60... Rb6
{[%clk 0:00:03.8]} 61. Kf4 {[%clk 0:00:18.8]} 61... Rb4+ {[%clk 0:00:01.7]} 62.
Kf5 {[%clk 0:00:19.7]} 62... Rb5+ {[%clk 0:00:02.3]} 63. Kf4 {[%clk 0:00:20]}
63... Rb6 {[%clk 0:00:03.2]} 64. Kf3 {[%clk 0:00:20.6]} 64... Rb4 {[%clk
0:00:02.9]} 65. Ke3 {[%clk 0:00:15.6]} 65... Rb3+ {[%clk 0:00:03.8]} 66. Kd2
{[%clk 0:00:15.9]} 66... Rb6 {[%clk 0:00:04.5]} 67. Kd1 {[%clk 0:00:16.4]} 67...
Rb1+ {[%clk 0:00:04.7]} 68. Kd2 {[%clk 0:00:16.8]} 68... Rb6 {[%clk 0:00:05.6]}
1/2-1/2

[Event "Early-Titled-Tuesday-Blitz-April-23-2024"]
[Site "Chess.com"]
[Date "2024.04.23"]
[Round "6"]
[White "Keranke"]
[Black "Polish_fighter3000"]
[Result "1/2-1/2"]
[WhiteElo "2866"]
[BlackElo "3109"]
[TimeControl "180+1"]
[EndTime "9:09:35 PDT"]
[Termination "Game drawn by stalemate"]

1. c4 {[%clk 0:03:00.9]} 1... e6 {[%clk 0:02:57.2]} 2. g3 {[%clk 0:03:00.8]}
2... d5 {[%clk 0:02:57.2]} 3. Bg2 {[%clk 0:03:01]} 3... Nf6 {[%clk 0:02:56.5]}
4. Nf3 {[%clk 0:03:01.4]} 4... Bd6 {[%clk 0:02:53.2]} 5. d4 {[%clk 0:02:58]}
5... Nc6 {[%clk 0:02:48.4]} 6. Nbd2 {[%clk 0:02:57]} 6... a5 {[%clk 0:02:47.1]}
7. O-O {[%clk 0:02:56.5]} 7... a4 {[%clk 0:02:44.7]} 8. Qc2 {[%clk 0:02:52.3]}
8... b6 {[%clk 0:02:25.9]} 9. e4 {[%clk 0:02:47.3]} 9... Nb4 {[%clk 0:02:20.2]}
10. Qb1 {[%clk 0:02:14.7]} 10... dxe4 {[%clk 0:02:19.2]} 11. Nxe4 {[%clk
0:02:15.6]} 11... Bb7 {[%clk 0:02:02.3]} 12. Nxf6+ {[%clk 0:02:10.1]} 12... Qxf6
{[%clk 0:01:59.7]} 13. a3 {[%clk 0:02:01.7]} 13... Bxf3 {[%clk 0:01:56.9]} 14.
Bxf3 {[%clk 0:01:57.1]} 14... Qxf3 {[%clk 0:01:56.5]} 15. axb4 {[%clk 0:01:58]}
15... Bxb4 {[%clk 0:01:48.4]} 16. Qc2 {[%clk 0:01:50.9]} 16... h5 {[%clk
0:01:34.8]} 17. Rxa4 {[%clk 0:01:35.4]} 17... h4 {[%clk 0:01:34]} 18. Rxa8+
{[%clk 0:01:33.2]} 18... Qxa8 {[%clk 0:01:34.9]} 19. d5 {[%clk 0:01:30.3]} 19...
h3 {[%clk 0:01:27.2]} 20. Qe4 {[%clk 0:01:22.1]} 20... O-O {[%clk 0:00:51.1]}
21. Bf4 {[%clk 0:01:15.9]} 21... Bd6 {[%clk 0:00:32.2]} 22. Bxd6 {[%clk
0:01:05]} 22... cxd6 {[%clk 0:00:33.1]} 23. Qg4 {[%clk 0:00:59.1]} 23... exd5
{[%clk 0:00:29.4]} 24. cxd5 {[%clk 0:01:00]} 24... Qc8 {[%clk 0:00:28.6]} 25.
Qf3 {[%clk 0:00:56.5]} 25... Re8 {[%clk 0:00:21.7]} 26. g4 {[%clk 0:00:55]}
26... Qc2 {[%clk 0:00:17.8]} 27. Qxh3 {[%clk 0:00:53.1]} 27... Qxb2 {[%clk
0:00:18.1]} 28. Qg3 {[%clk 0:00:50.4]} 28... Re5 {[%clk 0:00:12.6]} 29. Rd1
{[%clk 0:00:45.9]} 29... b5 {[%clk 0:00:12.3]} 30. Qf4 {[%clk 0:00:41.5]} 30...
b4 {[%clk 0:00:10.5]} 31. Rc1 {[%clk 0:00:41.5]} 31... g5 {[%clk 0:00:07.7]} 32.
Rc8+ {[%clk 0:00:37.9]} 32... Kg7 {[%clk 0:00:08]} 33. Qf3 {[%clk 0:00:37.9]}
33... b3 {[%clk 0:00:02]} 34. Rc7 {[%clk 0:00:34.5]} 34... Qb1+ {[%clk
0:00:02.2]} 35. Kg2 {[%clk 0:00:34.9]} 35... Qg6 {[%clk 0:00:01.8]} 36. Qxb3
{[%clk 0:00:33.1]} 36... Qe4+ {[%clk 0:00:01.9]} 37. Qf3 {[%clk 0:00:33.1]}
37... Qxf3+ {[%clk 0:00:02.3]} 38. Kxf3 {[%clk 0:00:33.7]} 38... Rxd5 {[%clk
0:00:03]} 39. Ke4 {[%clk 0:00:28.3]} 39... Re5+ {[%clk 0:00:02.7]} 40. Kf3
{[%clk 0:00:28.5]} 40... Kf6 {[%clk 0:00:03.2]} 41. Kg3 {[%clk 0:00:27.7]} 41...
Rd5 {[%clk 0:00:03.1]} 42. Rc3 {[%clk 0:00:26.1]} 42... Rd1 {[%clk 0:00:03.3]}
43. Rf3+ {[%clk 0:00:15.7]} 43... Ke6 {[%clk 0:00:03.7]} 44. Re3+ {[%clk
0:00:15.1]} 44... Kf6 {[%clk 0:00:04.4]} 45. Rf3+ {[%clk 0:00:15.7]} 45... Kg6
{[%clk 0:00:04.9]} 46. Rf5 {[%clk 0:00:13.7]} 46... Rg1+ {[%clk 0:00:03.5]} 47.
Kf3 {[%clk 0:00:14.1]} 47... Re1 {[%clk 0:00:03.6]} 48. Rd5 {[%clk 0:00:12.3]}
48... Re6 {[%clk 0:00:04]} 49. Kg3 {[%clk 0:00:12.5]} 49... Kf6 {[%clk
0:00:03.8]} 50. h4 {[%clk 0:00:12.8]} 50... gxh4+ {[%clk 0:00:04]} 51. Kxh4
{[%clk 0:00:13.4]} 51... Ke7 {[%clk 0:00:04.6]} 52. f4 {[%clk 0:00:13.4]} 52...
Re1 {[%clk 0:00:05]} 53. f5 {[%clk 0:00:11.4]} 53... Re5 {[%clk 0:00:02.9]} 54.
Rd1 {[%clk 0:00:09.9]} 54... Re4 {[%clk 0:00:02.2]} 55. Kg5 {[%clk 0:00:08.5]}
55... Rc4 {[%clk 0:00:02.2]} 56. Re1+ {[%clk 0:00:07.9]} 56... Kf8 {[%clk
0:00:02.4]} 57. Kf6 {[%clk 0:00:06.3]} 57... Rxg4 {[%clk 0:00:01.9]} 58. Ra1
{[%clk 0:00:06.6]} 58... Re4 {[%clk 0:00:01.6]} 59. Ra8+ {[%clk 0:00:05.7]}
59... Re8 {[%clk 0:00:02.1]} 60. Ra7 {[%clk 0:00:06.5]} 60... Kg8 {[%clk
0:00:02.7]} 61. Rxf7 {[%clk 0:00:06]} 61... Rf8 {[%clk 0:00:03.3]} 62. Rxf8+
{[%clk 0:00:06.2]} 62... Kxf8 {[%clk 0:00:04.2]} 63. Ke6 {[%clk 0:00:06.7]}
63... d5 {[%clk 0:00:04.6]} 64. Kxd5 {[%clk 0:00:07.3]} 64... Kf7 {[%clk
0:00:04.8]} 65. Ke5 {[%clk 0:00:08.2]} 65... Ke7 {[%clk 0:00:05.4]} 66. f6+
{[%clk 0:00:09]} 66... Kf7 {[%clk 0:00:06.1]} 67. Kf5 {[%clk 0:00:09.9]} 67...
Kf8 {[%clk 0:00:06.8]} 68. Ke6 {[%clk 0:00:10.8]} 68... Ke8 {[%clk 0:00:07.2]}
69. f7+ {[%clk 0:00:11.7]} 69... Kf8 {[%clk 0:00:07.7]} 70. Kf6 {[%clk
0:00:12.6]} 1/2-1/2

[Event "Early-Titled-Tuesday-Blitz-April-23-2024"]
[Site "Chess.com"]
[Date "2024.04.23"]
[Round "6"]
[White "SpeedofLight0"]
[Black "Nemegejas"]
[Result "1-0"]
[WhiteElo "3077"]
[BlackElo "2816"]
[TimeControl "180+1"]
[EndTime "9:09:35 PDT"]
[Termination "SpeedofLight0 won on time"]

1. d4 {[%clk 0:03:00.5]} 1... Nf6 {[%clk 0:02:59.4]} 2. Nc3 {[%clk 0:03:00.6]}
2... d5 {[%clk 0:02:44]} 3. Bf4 {[%clk 0:03:00.6]} 3... c5 {[%clk 0:02:42.6]} 4.
e3 {[%clk 0:02:59.7]} 4... cxd4 {[%clk 0:02:42.9]} 5. exd4 {[%clk 0:03:00.6]}
5... a6 {[%clk 0:02:40.4]} 6. Nf3 {[%clk 0:03:00.3]} 6... Bg4 {[%clk 0:02:37.2]}
7. h3 {[%clk 0:02:59]} 7... Bxf3 {[%clk 0:02:36.1]} 8. Qxf3 {[%clk 0:02:59.9]}
8... Nc6 {[%clk 0:02:36.4]} 9. O-O-O {[%clk 0:03:00]} 9... e6 {[%clk 0:02:32.5]}
10. g4 {[%clk 0:02:59.7]} 10... Bd6 {[%clk 0:01:59]} 11. Be3 {[%clk 0:02:46.1]}
11... Qa5 {[%clk 0:01:42.4]} 12. g5 {[%clk 0:02:45.9]} 12... Ne4 {[%clk
0:01:25.3]} 13. Nxe4 {[%clk 0:02:45.9]} 13... dxe4 {[%clk 0:01:25.6]} 14. Qxe4
{[%clk 0:02:46.7]} 14... Qxa2 {[%clk 0:01:26.1]} 15. c3 {[%clk 0:02:47.3]} 15...
Rc8 {[%clk 0:01:02.5]} 16. Qb1 {[%clk 0:02:27.9]} 16... Qa5 {[%clk 0:00:51.5]}
17. Bd3 {[%clk 0:02:23.2]} 17... Nb4 {[%clk 0:00:43.3]} 18. Be4 {[%clk
0:02:18.2]} 18... Nd5 {[%clk 0:00:38]} 19. Kd2 {[%clk 0:02:06.5]} 19... Nxe3
{[%clk 0:00:37.6]} 20. fxe3 {[%clk 0:02:04.9]} 20... Qxg5 {[%clk 0:00:37.1]} 21.
Bxb7 {[%clk 0:01:59.3]} 21... Rc7 {[%clk 0:00:36.5]} 22. Bxa6 {[%clk 0:01:51.8]}
22... Qg2+ {[%clk 0:00:34.8]} 23. Be2 {[%clk 0:01:52.3]} 23... O-O {[%clk
0:00:34.3]} 24. Qd3 {[%clk 0:01:38.9]} 24... Rb8 {[%clk 0:00:31.5]} 25. Rb1
{[%clk 0:01:37.4]} 25... Qa8 {[%clk 0:00:23.6]} 26. Rhd1 {[%clk 0:01:15.6]}
26... Qa2 {[%clk 0:00:22.5]} 27. Qc2 {[%clk 0:01:15.8]} 27... g6 {[%clk
0:00:18.1]} 28. Bf3 {[%clk 0:01:11.8]} 28... Qa5 {[%clk 0:00:15.7]} 29. Rg1
{[%clk 0:01:06]} 29... Kg7 {[%clk 0:00:15]} 30. Ke2 {[%clk 0:00:59.2]} 30... e5
{[%clk 0:00:15]} 31. d5 {[%clk 0:00:41.2]} 31... e4 {[%clk 0:00:14.3]} 32. Bxe4
{[%clk 0:00:31.9]} 32... Re7 {[%clk 0:00:13]} 33. b4 {[%clk 0:00:17.8]} 33...
Qb6 {[%clk 0:00:12.7]} 34. c4 {[%clk 0:00:16.3]} 34... Bh2 {[%clk 0:00:07.2]}
35. Rg2 {[%clk 0:00:12]} 35... Rbe8 {[%clk 0:00:06.3]} 36. c5 {[%clk 0:00:10.8]}
36... Qa6+ {[%clk 0:00:05.5]} 37. Qd3 {[%clk 0:00:05.5]} 37... Qa2+ {[%clk
0:00:05.2]} 38. Kf1 {[%clk 0:00:04.3]} 38... Qa4 {[%clk 0:00:03.8]} 39. Rxh2
{[%clk 0:00:02.9]} 39... Rxe4 {[%clk 0:00:04.5]} 40. Re2 {[%clk 0:00:03.4]}
40... Qd7 {[%clk 0:00:04.4]} 41. Ke1 {[%clk 0:00:03.2]} 41... Qxh3 {[%clk
0:00:04.5]} 42. Kd2 {[%clk 0:00:03.9]} 42... R4e5 {[%clk 0:00:02.7]} 43. e4
{[%clk 0:00:03.6]} 43... Qh6+ {[%clk 0:00:02.4]} 44. Kc3 {[%clk 0:00:04.2]}
44... Qf4 {[%clk 0:00:02.3]} 45. Rbe1 {[%clk 0:00:03.9]} 45... Ra8 {[%clk
0:00:01.3]} 46. Kc4 {[%clk 0:00:03.6]} 46... Kg8 {[%clk 0:00:01.8]} 47. Qe3
{[%clk 0:00:03.2]} 47... Qf6 {[%clk 0:00:02.3]} 48. Qd4 {[%clk 0:00:03.7]} 48...
Qa6+ {[%clk 0:00:02.8]} 49. Kc3 {[%clk 0:00:02.6]} 49... Qa3+ {[%clk 0:00:03.1]}
50. Kc4 {[%clk 0:00:03.3]} 50... Qa6+ {[%clk 0:00:03.1]} 51. Kc3 {[%clk
0:00:03.3]} 51... Rg5 {[%clk 0:00:03.3]} 52. Rb2 {[%clk 0:00:02.5]} 52... Rg3+
{[%clk 0:00:03.2]} 53. Re3 {[%clk 0:00:03.1]} 53... Rg1 {[%clk 0:00:02.7]} 54.
Ree2 {[%clk 0:00:02.4]} 54... Rc1+ {[%clk 0:00:02.2]} 55. Kd2 {[%clk 0:00:02.6]}
55... Rh1 {[%clk 0:00:01.8]} 56. b5 {[%clk 0:00:02.3]} 56... Qa1 {[%clk
0:00:02.4]} 57. Ke3 {[%clk 0:00:01.8]} 57... Qc1+ {[%clk 0:00:02.6]} 58. Qd2
{[%clk 0:00:01.7]} 58... Qg1+ {[%clk 0:00:03.5]} 59. Kd3 {[%clk 0:00:02.1]}
59... Ra3+ {[%clk 0:00:03.4]} 60. Kc4 {[%clk 0:00:02.4]} 60... Rhh3 {[%clk
0:00:02.5]} 61. b6 {[%clk 0:00:02.3]} 61... Rhf3 {[%clk 0:00:01.9]} 62. b7
{[%clk 0:00:02.5]} 62... Qf1 {[%clk 0:00:02]} 63. b8=Q+ {[%clk 0:00:02.3]} 63...
Kg7 {[%clk 0:00:01.9]} 64. Qe5+ {[%clk 0:00:03.2]} 64... f6 {[%clk 0:00:01.5]}
65. Qed4 {[%clk 0:00:03.9]} 1-0

[Event "Early-Titled-Tuesday-Blitz-April-23-2024"]
[Site "Chess.com"]
[Date "2024.04.23"]
[Round "6"]
[White "Binary010"]
[Black "AcostaPablo"]
[Result "1-0"]
[WhiteElo "2851"]
[BlackElo "2607"]
[TimeControl "180+1"]
[EndTime "9:09:36 PDT"]
[Termination "Binary010 won by checkmate"]

1. d4 {[%clk 0:03:00.9]} 1... Nf6 {[%clk 0:02:59]} 2. c4 {[%clk 0:03:01]} 2...
e6 {[%clk 0:02:59.2]} 3. Nf3 {[%clk 0:03:00.6]} 3... Bb4+ {[%clk 0:02:59.6]} 4.
Bd2 {[%clk 0:03:00]} 4... Qe7 {[%clk 0:02:59.6]} 5. g3 {[%clk 0:03:00.3]} 5...
O-O {[%clk 0:02:59.2]} 6. Bg2 {[%clk 0:03:00.2]} 6... Bxd2+ {[%clk 0:02:59.8]}
7. Qxd2 {[%clk 0:02:52]} 7... d6 {[%clk 0:02:58.9]} 8. O-O {[%clk 0:02:47.8]}
8... e5 {[%clk 0:02:58.9]} 9. Nc3 {[%clk 0:02:41.7]} 9... c6 {[%clk 0:02:58.4]}
10. e4 {[%clk 0:02:40.7]} 10... Bg4 {[%clk 0:02:56.9]} 11. d5 {[%clk 0:02:35.7]}
11... Bxf3 {[%clk 0:02:42.5]} 12. Bxf3 {[%clk 0:02:35.6]} 12... Na6 {[%clk
0:02:41.3]} 13. Rab1 {[%clk 0:02:19.7]} 13... Rfc8 {[%clk 0:02:29.2]} 14. b4
{[%clk 0:02:14.1]} 14... cxd5 {[%clk 0:02:26.6]} 15. cxd5 {[%clk 0:02:14.2]}
15... Nd7 {[%clk 0:02:23.3]} 16. Rfc1 {[%clk 0:02:11.5]} 16... Nb6 {[%clk
0:02:21]} 17. Bg4 {[%clk 0:01:47.2]} 17... Rc4 {[%clk 0:02:10.4]} 18. a3 {[%clk
0:01:40.1]} 18... g6 {[%clk 0:01:58.6]} 19. Qe2 {[%clk 0:01:29.2]} 19... Qc7
{[%clk 0:01:55.8]} 20. Na2 {[%clk 0:01:28.7]} 20... h5 {[%clk 0:01:44.5]} 21.
Bh3 {[%clk 0:01:27.7]} 21... Rd8 {[%clk 0:01:42.8]} 22. Bf1 {[%clk 0:01:08.9]}
22... Rc8 {[%clk 0:01:18.2]} 23. Rxc4 {[%clk 0:01:08]} 23... Qxc4 {[%clk
0:00:52.5]} 24. Qxc4 {[%clk 0:01:05.8]} 24... Nxc4 {[%clk 0:00:47]} 25. Rc1
{[%clk 0:01:05.9]} 25... Nb6 {[%clk 0:00:30.7]} 26. Rxc8+ {[%clk 0:01:05]} 26...
Nxc8 {[%clk 0:00:31.4]} 27. Nc3 {[%clk 0:00:56.9]} 27... Nc7 {[%clk 0:00:29]}
28. f4 {[%clk 0:00:56.4]} 28... f6 {[%clk 0:00:28.9]} 29. Kf2 {[%clk 0:00:56.2]}
29... Kf7 {[%clk 0:00:29]} 30. Ke3 {[%clk 0:00:56.4]} 30... Ke7 {[%clk
0:00:29.3]} 31. a4 {[%clk 0:00:52.5]} 31... Nb6 {[%clk 0:00:20.6]} 32. a5 {[%clk
0:00:51.9]} 32... Nd7 {[%clk 0:00:19.4]} 33. Na4 {[%clk 0:00:41.9]} 33... Kf7
{[%clk 0:00:18.1]} 34. Nb2 {[%clk 0:00:41.6]} 34... Ke7 {[%clk 0:00:17.6]} 35.
Nc4 {[%clk 0:00:40.3]} 35... Na6 {[%clk 0:00:17.9]} 36. b5 {[%clk 0:00:37.5]}
36... Nac5 {[%clk 0:00:18.2]} 37. Bh3 {[%clk 0:00:26.4]} 37... b6 {[%clk
0:00:16.5]} 38. a6 {[%clk 0:00:19.8]} 38... Nf8 {[%clk 0:00:12.2]} 39. Nxb6
{[%clk 0:00:14.8]} 39... f5 {[%clk 0:00:08.6]} 40. exf5 {[%clk 0:00:11.5]} 40...
gxf5 {[%clk 0:00:08.9]} 41. Bxf5 {[%clk 0:00:11.4]} 41... Kf6 {[%clk 0:00:09.4]}
42. Bh3 {[%clk 0:00:09.4]} 42... exf4+ {[%clk 0:00:10.3]} 43. gxf4 {[%clk
0:00:09.6]} 43... Ng6 {[%clk 0:00:10.6]} 44. Nc8 {[%clk 0:00:09.5]} 44... Ne7
{[%clk 0:00:11.3]} 45. Nxa7 {[%clk 0:00:05.9]} 45... Nxd5+ {[%clk 0:00:11.6]}
46. Kf3 {[%clk 0:00:06]} 46... Nb6 {[%clk 0:00:08.4]} 47. Nc6 {[%clk 0:00:05.2]}
47... d5 {[%clk 0:00:08.6]} 48. a7 {[%clk 0:00:04.8]} 48... d4 {[%clk 0:00:09]}
49. Nxd4 {[%clk 0:00:04.9]} 49... Ke7 {[%clk 0:00:08.8]} 50. Nc6+ {[%clk
0:00:04.3]} 50... Kd6 {[%clk 0:00:09.5]} 51. Ne5 {[%clk 0:00:04.3]} 51... Nb3
{[%clk 0:00:09.2]} 52. Nc4+ {[%clk 0:00:03.9]} 52... Nxc4 {[%clk 0:00:09.6]} 53.
a8=Q {[%clk 0:00:04.4]} 53... Nd4+ {[%clk 0:00:10.5]} 54. Kg2 {[%clk 0:00:03.9]}
54... Nxb5 {[%clk 0:00:09.9]} 55. Qd8+ {[%clk 0:00:03.5]} 55... Kc5 {[%clk
0:00:10.3]} 56. Qe7+ {[%clk 0:00:03.4]} 56... Kd4 {[%clk 0:00:09.9]} 57. f5
{[%clk 0:00:03.5]} 57... Nbd6 {[%clk 0:00:08.5]} 58. f6 {[%clk 0:00:03.6]} 58...
Ne3+ {[%clk 0:00:06.6]} 59. Kf3 {[%clk 0:00:04]} 59... Nec4 {[%clk 0:00:06.6]}
60. Qa7+ {[%clk 0:00:04.2]} 60... Ke5 {[%clk 0:00:06.5]} 61. f7 {[%clk
0:00:04.6]} 61... Kd5 {[%clk 0:00:06.3]} 62. f8=Q {[%clk 0:00:04.3]} 62... Ne5+
{[%clk 0:00:07.2]} 63. Kg2 {[%clk 0:00:04.2]} 63... Ne4 {[%clk 0:00:07.7]} 64.
Qg8+ {[%clk 0:00:04.4]} 64... Kd6 {[%clk 0:00:06.2]} 65. Qe6# {[%clk 0:00:04.5]}
1-0